bitfinex-derivatives/quotes_SOLF0:USTF0_20250706
["timestamp","ask_amount","ask_price","bid_price","bid_amount"]
[1751842766925,1.69626088,152.4,152.34,1.67556926]
[1751842767127,1.69626088,152.4,152.36,1.69626088]
[1751842767427,44.96,152.43,152.37,1.69626088]
[1751842767626,2.37657284,152.42,152.39,1.69626088]
[1751842767823,46.65626088,152.43,152.39,1.69626088]
[1751842768024,2.37693727,152.42,152.39,1.69639261]
[1751842768224,46.65639261,152.43,152.4,6.5604]
[1751842768225,44.96,152.43,152.4,6.5604]
[1751842768423,2.37747469,152.42,152.4,6.5604]
[1751842768624,44.96,152.43,152.4,6.5604]
[1751842768823,2.37747469,152.42,152.4,6.5604]
[1751842769024,44.96,152.43,152.4,6.5604]
[1751842769223,2.37747469,152.42,152.4,6.5604]
[1751842769424,51.5195,152.43,152.4,6.5604]
[1751842769626,2.37810003,152.42,152.4,6.5604]
[1751842769822,51.5195,152.43,152.4,6.5604]
[1751842770027,2.39182385,152.42,152.4,6.5604]
[1751842770234,51.5195,152.43,152.4,6.5604]
[1751842770529,2.39257571,152.42,152.4,6.5604]
[1751842770827,53.21589261,152.43,152.4,6.5604]
[1751842771031,2.39257571,152.42,152.4,6.5604]
[1751842771233,53.21589261,152.43,152.4,6.5604]
[1751842771433,2.39271872,152.42,152.4,6.5604]
[1751842771635,53.21589261,152.43,152.4,6.5604]
[1751842771832,2.39271872,152.42,152.4,6.5604]
[1751842772029,53.21589261,152.43,152.4,6.5604]
[1751842772231,2.39275726,152.42,152.4,6.5604]
[1751842772529,53.21589261,152.43,152.4,6.5604]
[1751842772729,2.3928493,152.42,152.4,6.5604]
[1751842773028,53.21589261,152.43,152.4,6.5604]
[1751842773228,2.3928493,152.42,152.4,6.5604]
[1751842773431,53.21589261,152.43,152.4,6.5604]
[1751842773630,2.39300889,152.42,152.4,6.5604]
[1751842773932,6.5599,152.42,152.39,6.561]
[1751842774132,8.2563727,152.42,152.39,6.561]
[1751842775435,2.39982397,152.41,152.39,6.561]
[1751842775636,8.2563727,152.42,152.39,6.561]
[1751842776036,1.6964727,152.42,152.4,6.5606]
[1751842778533,51.5195,152.43,152.4,6.5606]
[1751842778734,4.09734713,152.42,152.4,6.5606]
[1751842778935,1.6964727,152.42,152.4,6.5606]
[1751842779637,8.2563727,152.42,152.39,6.5608]
[1751842781238,8.2563727,152.42,152.4,6.5606]
[1751842781239,1.6964727,152.42,152.4,6.5606]
[1751842784840,44.96,152.43,152.41,6.5602]
[1751842785041,1.6964727,152.42,152.41,6.5602]
[1751842785440,4.09774982,152.42,152.4,6.5605]
[1751842785641,51.5196,152.43,152.4,6.5605]
[1751842785837,4.0975659,152.42,152.4,6.5605]
[1751842786038,1.6964727,152.42,152.4,6.5605]
[1751842786342,46.6564727,152.43,152.39,1.6964727]
[1751842786643,53.2158727,152.43,152.4,6.5606]
[1751842786843,2.40133819,152.42,152.4,6.5606]
[1751842787045,53.2158727,152.43,152.4,6.5606]
[1751842787240,4.09776168,152.42,152.4,6.5606]
[1751842787440,1.6964727,152.42,152.4,6.5606]
[1751842787740,1.6964727,152.42,152.41,6.5602]
[1751842787943,4.09773484,152.42,152.41,6.5602]
[1751842788342,44.96,152.43,152.42,6.5598]
[1751842788636,47.36142568,152.43,152.42,6.5598]
[1751842789042,47.36142693,152.43,152.42,6.5598]
[1751842791542,44.96,152.43,152.42,6.5598]
[1751842792839,44.96,152.43,152.42,8.2562727]
[1751842793643,8.2547727,152.46,152.43,6.5591]
[1751842793839,2.40020963,152.45,152.42,1.6964727]
[1751842794143,53.2142727,152.47,152.43,1.6964727]
[1751842794343,2.39971368,152.46,152.44,6.5587]
[1751842794645,2.39971368,152.45,152.44,6.5587]
[1751842795144,8.2545727,152.46,152.44,6.5587]
[1751842795843,2.41976173,152.45,152.44,6.5587]
[1751842797050,4.11623443,152.45,152.44,6.5587]
[1751842797452,2.41976173,152.45,152.44,6.5587]
[1751842797652,4.11623443,152.45,152.44,6.5587]
[1751842798447,2.41976173,152.45,152.44,6.5587]
[1751842798648,4.11623443,152.45,152.44,6.5587]
[1751842800851,44.96,152.47,152.46,6.5581]
[1751842801052,47.39264465,152.47,152.46,6.5581]
[1751842801249,47.39268211,152.47,152.46,6.5581]
[1751842801447,47.39230533,152.47,152.46,6.5581]
[1751842801652,51.32592567,152.47,152.46,6.5581]
[1751842801855,46.6564727,152.51,152.46,1.6964727]
[1751842802154,236.0964727,152.51,152.48,1.6964727]
[1751842802355,236.0964727,152.51,152.47,1.6964727]
[1751842802654,236.0964727,152.51,152.48,6.5571]
[1751842802851,242.6523727,152.51,152.48,6.5571]
[1751842803047,242.6523727,152.51,152.47,1.6964727]
[1751842803652,53.2123727,152.51,152.47,1.6964727]
[1751842803953,242.6323727,152.51,152.48,6.557]
[1751842804855,1.6964727,152.5,152.48,6.557]
[1751842805756,240.9359,152.51,152.48,6.557]
[1751842805953,242.6323727,152.51,152.49,6.5567]
[1751842806557,240.9359,152.51,152.49,6.5567]
[1751842806852,242.6323727,152.51,152.49,6.5567]
[1751842807253,242.6123727,152.51,152.49,6.5567]
[1751842809155,242.6123727,152.51,152.48,6.557]
[1751842810157,46.6564727,152.51,152.49,6.5567]
[1751842810357,1.6964727,152.5,152.43,44.94]
[1751842810552,8.2529727,152.5,152.47,8.2538727]
[1751842810857,1.6964727,152.5,152.47,1.6964727]
[1751842811057,8.2531727,152.5,152.46,8.2541727]
[1751842811550,1.6964727,152.5,152.46,8.2541727]
[1751842811747,1.6964727,152.48,152.47,6.5576]
[1751842811959,1.6964727,152.5,152.46,1.6964727]
[1751842812255,8.2529727,152.5,152.46,1.6964727]
[1751842812459,1.6964727,152.5,152.48,6.5572]
[1751842812660,236.0364727,152.51,152.48,6.5572]
[1751842813161,1.6964727,152.5,152.48,6.5572]
[1751842813564,1.6964727,152.5,152.47,6.5574]
[1751842813756,1.6964727,152.5,152.46,1.6964727]
[1751842814062,242.5925727,152.51,152.48,6.5569]
[1751842814261,242.5925727,152.51,152.47,1.6964727]
[1751842814559,1.6964727,152.5,152.42,6.8395]
[1751842814753,1.6964727,152.45,152.42,6.3185727]
[1751842814959,189.38,152.46,152.43,1.6964727]
[1751842815561,189.38,152.46,152.42,2.274]
[1751842815863,189.38,152.46,152.44,6.5585]
[1751842816059,189.38,152.46,152.43,1.6964727]
[1751842817064,1.6964727,152.47,152.43,1.6964727]
[1751842817557,189.36,152.48,152.45,1.6964727]
[1751842817964,189.36,152.48,152.42,2.274]
[1751842818263,191.0564727,152.48,152.44,1.6964727]
[1751842818563,197.6137727,152.48,152.45,6.5582]
[1751842819762,1.6964727,152.47,152.45,6.5582]
[1751842820158,197.6137727,152.48,152.45,6.5582]
[1751842820561,8.2537727,152.48,152.45,6.5582]
[1751842826164,44.96,152.51,152.46,1.6964727]
[1751842826365,236.0164727,152.51,152.48,1.6964727]
[1751842826966,242.5726727,152.51,152.48,6.5569]
[1751842829872,1.6964727,152.5,152.48,6.5569]
[1751842832277,242.5726727,152.51,152.48,6.5569]
[1751842833178,53.2126727,152.51,152.48,6.5569]
[1751842833375,189.36,152.5,152.48,6.5569]
[1751842835772,53.2126727,152.51,152.49,1.6964727]
[1751842835773,44.96,152.51,152.49,1.6964727]
[1751842835977,234.3,152.51,152.49,1.6964727]
[1751842836374,44.96,152.51,152.48,1.6964727]
[1751842836979,46.6564727,152.51,152.48,6.5569]
[1751842837675,235.9964727,152.51,152.48,6.5569]
[1751842838177,235.9964727,152.51,152.48,8.2533727]
[1751842838771,242.5524727,152.51,152.48,8.2533727]
[1751842839680,242.5524727,152.51,152.48,6.5569]
[1751842839978,8.2529727,152.5,152.47,6.5575]
[1751842840169,1.6964727,152.48,152.44,1.6964727]
[1751842840369,234.3,152.51,152.43,2.3423]
[1751842840573,1.6964727,152.48,152.46,6.5578]
[1751842840878,191.0164727,152.48,152.46,6.5578]
[1751842845486,197.5737727,152.48,152.46,6.5578]
[1751842846189,6.5582,152.46,152.43,6.5593]
[1751842846386,1.6964727,152.45,152.43,6.5593]
[1751842846787,8.2546727,152.46,152.43,6.5593]
[1751842847288,1.6964727,152.46,152.44,6.5588]
[1751842847490,8.2541727,152.47,152.44,6.5588]
[1751842848588,6.5582,152.46,152.43,8.2556727]
[1751842848784,1.6964727,152.47,152.43,1.6964727]
[1751842848982,8.2543727,152.47,152.44,6.5589]
[1751842851890,6.5579,152.47,152.45,6.5584]
[1751842852087,1.6964727,152.47,152.45,6.5584]
[1751842853387,8.2543727,152.47,152.44,6.5588]
[1751842853585,8.2543727,152.47,152.43,1.6964727]
[1751842853887,191.0164727,152.48,152.44,1.6964727]
[1751842854089,6.44650789,152.47,152.45,6.5585]
[1751842854287,197.5739727,152.48,152.45,6.5585]
[1751842854490,6.44623812,152.47,152.45,6.5585]
[1751842854689,1.6964727,152.47,152.45,6.5585]
[1751842855395,8.2541727,152.47,152.45,6.5585]
[1751842857200,1.6964727,152.47,152.45,6.5585]
[1751842857393,195.8774,152.48,152.45,6.5585]
[1751842857594,8.1216052,152.47,152.45,6.5585]
[1751842857889,1.6964727,152.47,152.45,6.5585]
[1751842861203,1.6964727,152.47,152.44,1.6964727]
[1751842861204,8.2542727,152.47,152.44,8.2552727]
[1751842861403,8.2542727,152.47,152.44,6.5588]
[1751842863101,1.6964727,152.46,152.44,6.5588]
[1751842864502,8.2542727,152.47,152.44,6.5588]
[1751842864903,8.2542727,152.47,152.45,6.5584]
[1751842865507,8.2542727,152.47,152.44,6.5588]
[1751842866108,6.5578,152.47,152.44,6.5588]
[1751842866405,8.2542727,152.47,152.44,6.5588]
[1751842867506,6.5578,152.47,152.44,6.5588]
[1751842867702,197.5738727,152.48,152.45,6.5585]
[1751842868107,191.0164727,152.48,152.44,1.6964727]
[1751842868906,197.5739727,152.48,152.45,6.5582]
[1751842870606,189.32,152.48,152.46,6.558]
[1751842870805,1.6964727,152.49,152.45,1.6964727]
[1751842871005,4.13010979,152.48,152.44,1.6964727]
[1751842871206,1.6964727,152.48,152.44,1.6964727]
[1751842871608,8.2536727,152.48,152.45,6.5583]
[1751842872213,6.5577,152.47,152.44,8.2552727]
[1751842872413,8.2541727,152.47,152.44,6.5588]
[1751842874207,8.2545727,152.46,152.43,6.5593]
[1751842874511,1.6964727,152.45,152.43,6.5593]
[1751842880318,1.6964727,152.45,152.44,6.5589]
[1751842880517,1.6964727,152.45,152.41,1.6964727]
[1751842881609,8.2545727,152.46,152.43,6.5591]
[1751842881813,8.2545727,152.46,152.41,1.6964727]
[1751842882319,8.2545727,152.46,152.42,6.5596]
[1751842883218,1.6964727,152.45,152.42,6.5596]
[1751842883517,8.2551727,152.45,152.42,6.5596]
[1751842886121,8.2551727,152.45,152.41,1.6964727]
[1751842886122,1.6964727,152.45,152.43,6.5593]
[1751842886323,8.2546727,152.46,152.43,6.5593]
[1751842886522,6.5585,152.45,152.43,6.5593]
[1751842888720,6.5585,152.45,152.42,8.2559727]
[1751842888917,1.6964727,152.43,152.38,47.2958]
[1751842889120,1.6964727,152.41,152.39,6.5608]
[1751842889321,1.6964727,152.41,152.35,2.1933]
[1751842889322,8.2567727,152.41,152.35,2.1933]
[1751842889521,8.2567727,152.41,152.37,1.6964727]
[1751842889721,1.6964727,152.4,152.36,1.6964727]
[1751842889923,1.6964727,152.38,152.34,51.00066926]
[1751842890225,1.6964727,152.38,152.34,48.27204196]
[1751842890423,1.6964727,152.38,152.34,3.37204196]
[1751842890617,44.9,152.41,152.34,1.67556926]
[1751842890926,44.9,152.41,152.34,3.37204196]
[1751842890927,1.6964727,152.38,152.34,3.37204196]
[1751842891326,1.6964727,152.39,152.35,1.6964727]
[1751842891523,46.5964727,152.4,152.37,1.6964727]
[1751842891722,53.1572727,152.4,152.36,1.6964727]
[1751842893030,1.6964727,152.39,152.36,1.6964727]
[1751842893528,1.6964727,152.39,152.37,6.5618]
[1751842895429,1.6964727,152.39,152.34,1.67556926]
[1751842895628,1.6964727,152.39,152.36,1.6964727]
[1751842896328,44.9,152.4,152.36,1.6964727]
[1751842896529,46.5964727,152.4,152.36,1.6964727]
[1751842897128,46.5964727,152.4,152.37,6.5616]
[1751842897329,53.1571727,152.4,152.37,6.5616]
[1751842897624,46.5964727,152.4,152.34,1.67556926]
[1751842897824,46.5964727,152.4,152.34,3.37204196]
[1751842897825,1.6964727,152.38,152.34,3.37204196]
[1751842898029,1.6964727,152.37,152.34,1.67556926]
[1751842898821,1.6964727,152.37,152.35,6.5628]
[1751842899129,1.6964727,152.37,152.34,1.67556926]
[1751842899329,1.6964727,152.36,152.34,1.67556926]
[1751842899728,1.6964727,152.37,152.34,1.67556926]
[1751842900620,1.6964727,152.37,152.35,6.5628]
[1751842901532,1.6964727,152.37,152.34,8.23866926]
[1751842902134,8.2585727,152.37,152.34,8.23866926]
[1751842904835,1.6964727,152.37,152.35,6.5628]
[1751842905136,1.6964727,152.37,152.34,1.67556926]
[1751842906540,6.562,152.37,152.34,8.23856926]
[1751842906731,8.2584727,152.37,152.34,8.23856926]
[1751842907135,1.6964727,152.37,152.34,1.67556926]
[1751842907531,1.6964727,152.36,152.34,1.67556926]
[1751842908334,1.6964727,152.37,152.34,1.67556926]
[1751842908640,1.6964727,152.37,152.35,6.5626]
[1751842909139,1.6964727,152.37,152.34,1.67556926]
[1751842909339,1.6964727,152.35,152.34,1.67556926]
[1751842909541,1.6964727,152.37,152.34,1.67556926]
[1751842909835,1.69797582,152.35,152.25,3.34990292]
[1751842910037,1.69797582,152.35,152.11,628.51238044]
[1751842910038,1.69797582,152.27,152.2,18.30742826]
[1751842910230,1.69797582,152.21,152.11,18.30621996]
[1751842910431,1.69797582,152.12,152.05,19.68]
[1751842910642,212.86,152.11,151.97,52.26]
[1751842910841,2.66600938,152.03,151.91,26.77726105]
[1751842911038,2.66600938,152.03,151.92,53.68]
[1751842911233,2.66600938,152.01,151.91,571.83650938]
[1751842911439,2.66600938,152.01,151.99,1.14398422]
[1751842911645,2.66600938,152.01,151.91,571.83650938]
[1751842911646,2.66600938,152.01,151.93,53.7]
[1751842912033,2.59239757,152.07,151.97,1.14483099]
[1751842912238,2.66600938,152.01,151.97,1.14483099]
[1751842912437,8.02905179,152.0,151.97,1.14483099]
[1751842912635,2.66600938,152.08,151.92,2.66600938]
[1751842912636,5.25913876,151.99,151.92,2.66600938]
[1751842912845,8.89261931,151.98,151.91,2.3705]
[1751842913038,8.89260376,151.97,151.92,1.14490632]
[1751842913339,3.4798689,151.96,151.95,2.66600938]
[1751842913544,2.66600938,152.03,151.91,2.3705]
[1751842913745,4.72009683,152.02,151.95,2.66600938]
[1751842913944,4.72009683,152.01,151.95,2.66600938]
[1751842914146,4.72009683,152.0,151.95,57.78600938]
[1751842914346,2.66600938,152.04,151.96,2.66600938]
[1751842914646,4.70821192,152.03,152.01,2.66600938]
[1751842914841,219.4,152.09,151.96,2.1952]
[1751842915039,219.4,152.09,151.98,2.66600938]
[1751842915239,55.16,152.12,151.96,2.1952]
[1751842915240,2.66600938,152.11,151.96,2.1952]
[1751842915447,221.96,152.1,152.01,2.66600938]
[1751842915645,55.16,152.12,152.01,56.96]
[1751842915848,2.66600938,152.09,152.01,56.96]
[1751842916043,55.16,152.12,152.01,56.96]
[1751842916244,225.80600938,152.11,152.01,56.96]
[1751842916635,225.80600938,152.11,152.01,63.5371]
[1751842916844,225.80600938,152.11,152.01,56.96]
[1751842917443,2.66600938,152.09,152.01,56.96]
[1751842917644,2.66600938,152.07,152.01,56.96]
[1751842918038,2.66600938,152.05,152.0,2.1699]
[1751842918342,223.14,152.11,151.98,56.98]
[1751842918343,2.66600938,152.03,151.98,56.98]
[1751842918944,3.99851905,152.03,151.98,56.98]
[1751842919148,223.14,152.11,151.96,2.1952]
[1751842919443,3.99851905,152.02,151.96,8.7744]
[1751842920245,3.99851905,152.05,151.96,2.1952]
[1751842920448,56.98,152.07,151.96,2.1952]
[1751842920647,3.99851905,152.06,151.96,2.1952]
[1751842920844,3.99851905,152.04,151.96,2.1952]
[1751842921550,3.99851905,152.04,151.99,6.5783]
[1751842921848,3.99851905,152.04,151.96,2.1952]
[1751842922247,3.99851905,152.04,151.99,6.578]
[1751842922651,3.99851905,152.04,151.96,2.1952]
[1751842923251,56.98,152.07,151.96,2.1952]
[1751842923252,3.99851905,152.06,151.96,2.1952]
[1751842923953,3.99851905,152.06,151.99,6.578]
[1751842924556,3.99851905,152.06,152.0,6.5779]
[1751842924753,56.98,152.07,151.96,2.1952]
[1751842925055,3.99709591,152.06,152.01,6.5771]
[1751842925458,3.44024807,152.05,152.01,6.5771]
[1751842925653,3.44024807,152.04,152.0,6.5772]
[1751842925851,3.44024807,152.03,152.0,6.5772]
[1751842926056,3.44024807,152.02,152.0,6.5772]
[1751842926257,3.44024807,152.01,152.0,6.5772]
[1751842926457,8.84122377,152.01,152.0,6.5772]
[1751842926857,2.377e-05,152.01,152.0,6.5772]
[1751842927854,2.377e-05,152.01,151.99,6.5777]
[1751842928063,3.99718643,152.05,151.96,2.1952]
[1751842928759,3.99718643,152.05,152.0,6.5769]
[1751842929155,3.99829169,152.03,152.01,6.5766]
[1751842929557,3.99791852,152.04,152.01,6.5766]
[1751842930763,3.99791852,152.04,152.01,3.28866736]
[1751842931860,3.99791852,152.04,152.02,6.5764]
[1751842932262,3.99791852,152.05,152.02,6.5764]
[1751842932458,3.99791852,152.05,152.01,6.5767]
[1751842932857,3.99791852,152.05,151.96,2.1952]
[1751842933058,3.99791852,152.05,152.01,6.5767]
[1751842933260,3.99791852,152.05,151.96,2.1952]
[1751842934364,3.99791852,152.05,152.01,6.5764]
[1751842934965,3.99791852,152.05,151.96,59.2352]
[1751842935566,3.99791852,152.05,151.96,2.1952]
[1751842935967,3.99791852,152.05,152.01,6.5768]
[1751842936365,3.99791852,152.02,151.93,2.1699]
[1751842936568,3.99791852,151.99,151.94,57.04]
[1751842936868,56.98,152.07,151.94,61.03791852]
[1751842937070,3.99791852,152.04,151.94,61.03791852]
[1751842937264,3.99845341,152.03,151.94,61.03845341]
[1751842937464,3.99845341,152.03,151.93,2.1699]
[1751842937662,3.99845341,152.03,151.95,57.04]
[1751842937866,3.99845341,152.01,151.95,57.04]
[1751842938171,3.99845341,152.01,151.93,2.1699]
[1751842938373,3.99845341,152.01,151.93,57.7699]
[1751842938772,3.99845341,152.01,151.93,60.43617739]
[1751842938773,2.66627739,152.01,151.93,60.43617739]
[1751842939374,2.66627739,152.01,151.99,6.5774]
[1751842940367,2.66627739,152.01,151.93,60.43617739]
[1751842940572,2.66632258,152.01,151.93,60.43622258]
[1751842940974,2.66632258,152.01,151.98,6.5777]
[1751842942074,2.66662512,152.0,151.91,2.3705]
[1751842942275,2.66662512,151.98,151.91,2.3705]
[1751842942473,2.66662512,151.98,151.96,6.5787]
[1751842942769,55.62,152.03,151.91,2.3705]
[1751842942974,2.66679493,152.0,151.97,6.5782]
[1751842943774,2.66679493,152.01,151.93,2.66679493]
[1751842943968,2.66679493,152.03,151.95,2.66679493]
[1751842944169,2.66516605,152.07,151.98,2.66516605]
[1751842944371,58.28516605,152.07,151.99,4.4649]
[1751842944572,64.85956605,152.07,151.99,4.4649]
[1751842944877,55.62,152.07,151.99,4.4649]
[1751842945181,2.66516605,152.05,152.03,6.5757]
[1751842945876,2.66516605,152.05,151.99,4.4649]
[1751842947176,2.66516605,152.03,151.99,4.4649]
[1751842947572,55.62,152.07,151.99,4.4649]
[1751842948077,6.5754,152.05,152.01,6.5766]
[1751842948280,2.66516605,152.03,151.99,4.4649]
[1751842948672,2.66516605,152.01,151.93,2.66516605]
[1751842948880,2.66516605,152.01,151.95,2.66516605]
[1751842949181,2.66516605,152.03,152.0,6.5773]
[1751842949582,2.66516605,152.03,151.99,6.5776]
[1751842949983,2.66516605,152.01,151.99,6.5776]
[1751842952588,8.25497606,152.03,151.97,2.66544553]
[1751842952783,8.25497606,152.02,151.97,2.66544553]
[1751842952988,8.2538079,152.01,151.96,2.66544553]
[1751842953291,8.26934512,152.0,151.97,6.5784]
[1751842953482,67.04990551,152.04,151.97,6.5784]
[1751842953483,10.93529535,151.99,151.97,6.5784]
[1751842953679,8.26593258,151.98,151.93,4.3959]
[1751842953886,8.26558839,151.97,151.95,6.5793]
[1751842954182,8.2863618,151.96,151.93,4.3959]
[1751842954386,10.9534595,151.95,151.93,6.5803]
[1751842954689,8.2863618,151.94,151.9,1.67556926]
[1751842954883,8.2863618,151.93,151.9,1.67556926]
[1751842955087,8.2863618,151.92,151.9,1.67556926]
[1751842955294,8.2863618,151.91,151.9,8.25716926]
[1751842964988,4.7000618,151.91,151.9,8.25716926]
[1751842966482,8.78990551,151.95,151.9,1.67556926]
[1751842967094,8.78990551,151.95,151.92,6.5803]
[1751842967294,8.78990551,151.96,151.92,6.5803]
[1751842967594,8.78990551,151.95,151.92,6.5803]
[1751842968193,15.36900551,151.96,151.92,6.5803]
[1751842968693,6.5795,151.95,151.92,6.5803]
[1751842968896,8.78990551,151.96,151.92,6.5803]
[1751842969197,8.78990551,151.97,151.92,6.5803]
[1751842969394,71.05119664,151.98,151.92,6.5803]
[1751842969599,8.78990551,151.97,151.92,6.5803]
[1751842969994,6.5792,151.96,151.93,6.5803]
[1751842971099,6.5795,151.95,151.9,1.67556926]
[1751842971497,62.26129113,151.98,151.94,12.24262794]
[1751842971498,4.00199643,151.96,151.94,12.24262794]
[1751842971693,4.00199643,151.96,151.95,9.67770085]
[1751842971893,10.58099643,151.96,151.95,9.67770085]
[1751842973099,10.58099643,151.96,151.95,18.86060925]
[1751842973305,10.58099643,151.96,151.95,9.67770085]
[1751842974402,10.58118118,151.96,151.95,9.67770085]
[1751842975402,4.0026874,151.96,151.92,9.1829084]
[1751842975604,4.0026874,151.94,151.92,9.1829084]
[1751842976104,6.5803,151.93,151.92,9.1829084]
[1751842976307,4.0026874,151.94,151.92,9.1829084]
[1751842976605,4.0030396,151.95,151.92,9.1829084]
[1751842976799,2.66873393,151.94,151.9,10.85847766]
[1751842977006,6.5806,151.93,151.91,9.1829084]
[1751842977806,6.5806,151.93,151.9,8.25706926]
[1751842978202,2.66873393,151.96,151.9,10.85847766]
[1751842978402,2.66873393,151.96,151.91,9.1829084]
[1751842978601,2.66873393,151.96,151.9,10.85847766]
[1751842978906,6.5801,151.94,151.91,6.5811]
[1751842979201,2.66873393,151.96,151.9,1.67556926]
[1751842979400,2.66873393,151.94,151.9,1.67556926]
[1751842982502,6.581,151.92,151.9,1.67556926]
[1751842983004,2.66873393,151.92,151.9,1.67556926]
[1751842983206,2.66873393,151.92,151.87,9.1829084]
[1751842983406,2.66873393,151.9,151.87,9.1829084]
[1751842983707,6.5824,151.89,151.87,9.1829084]
[1751842983907,2.66873393,151.9,151.87,9.1829084]
[1751842984317,9.25063393,151.9,151.87,15.7655084]
[1751842984909,6.5814,151.91,151.86,9.1829084]
[1751842985209,2.66873393,151.92,151.86,9.1829084]
[1751842985510,6.5817,151.9,151.87,6.5827]
[1751842986809,2.66939274,151.91,151.87,6.5828]
[1751842987106,2.66939274,151.89,151.84,9.1829084]
[1751842987311,6.5834,151.86,151.85,8.55227246]
[1751842988312,5.00429274,151.92,151.85,8.55227246]
[1751842988508,2.66939274,151.89,151.86,8.55227246]
[1751842988709,2.66939274,151.89,151.87,8.55227246]
[1751842989010,6.582,151.89,151.88,8.55227246]
[1751842990210,6.5826,151.88,151.85,6.5834]
[1751842990410,2.3349,151.92,151.86,8.54681223]
[1751842990604,2.66939274,151.91,151.87,8.54681223]
[1751842990803,2.297,151.93,151.88,8.54681223]
[1751842991115,568.6,151.94,151.89,8.54681223]
[1751842991116,56.72,151.92,151.89,8.54681223]
[1751842991307,56.72,151.92,151.87,2.66939274]
[1751842991308,56.72,151.92,151.9,8.54681223]
[1751842991503,56.72,151.92,151.91,8.54681223]
[1751842992513,63.3007,151.92,151.91,8.54681223]
[1751842995504,65.89143021,151.92,151.91,8.54681223]
[1751842996615,69.93106378,151.92,151.91,8.54681223]
[1751842996913,67.34033357,151.92,151.91,8.54681223]
[1751842997120,69.91652084,151.92,151.91,8.54681223]
[1751843001419,69.91652084,151.92,151.88,6.5823]
[1751843001420,6.5815,151.91,151.88,6.5823]
[1751843001620,63.33582084,151.92,151.87,6.5827]
[1751843001621,216.26,151.9,151.87,6.5827]
[1751843002221,216.26,151.9,151.88,6.5824]
[1751843005020,6.5815,151.91,151.88,6.5824]
[1751843005215,56.72,151.92,151.87,9.1829084]
[1751843005521,218.19155955,151.91,151.87,14.12500114]
[1751843005721,215.6,151.91,151.87,14.12500114]
[1751843005917,215.6,151.91,151.89,6.5818]
[1751843006614,63.3008,151.92,151.89,6.5818]
[1751843006823,568.6,151.94,151.88,9.1829084]
[1751843007024,215.34,151.93,151.91,2.66939274]
[1751843007229,55.22,151.95,151.91,2.66939274]
[1751843007431,228.60917616,151.94,151.91,9.25029274]
[1751843007627,221.9202,151.94,151.91,9.25029274]
[1751843007927,221.9202,151.94,151.92,6.5807]
[1751843008326,221.9202,151.94,151.91,2.66939274]
[1751843008529,221.9202,151.94,151.91,9.25029274]
[1751843008724,221.9202,151.94,151.91,6.5809]
[1751843009028,6.5802,151.94,151.91,6.5809]
[1751843009530,214.94,151.96,151.92,11.85230114]
[1751843009724,2.59322196,151.95,151.92,11.85230114]
[1751843009920,221.5191,151.96,151.93,6.5801]
[1751843010119,2.59322567,151.95,151.92,11.85230114]
[1751843010324,214.72,151.97,151.92,11.85230114]
[1751843010524,6.69008312,151.96,151.92,11.85230114]
[1751843010726,2.59325187,151.95,151.94,2.66939274]
[1751843010926,214.66,151.97,151.94,2.66939274]
[1751843011122,6.69008798,151.96,151.95,6.5794]
[1751843011525,13.26938798,151.96,151.93,15.7629084]
[1751843011731,2.59316776,151.95,151.92,11.85230114]
[1751843011931,269.72,151.98,151.92,11.85230114]
[1751843012136,6.68852528,151.97,151.92,2.66939274]
[1751843012333,13.26785007,151.96,151.93,6.5801]
[1751843012524,2.59264801,151.95,151.92,2.66939274]
[1751843012729,214.34,151.96,151.92,11.85230114]
[1751843012931,214.28,151.97,151.92,11.85230114]
[1751843013130,214.28,151.97,151.94,2.66939274]
[1751843014440,220.8586,151.97,151.94,9.24899274]
[1751843015538,220.8586,151.97,151.95,6.5794]
[1751843015733,214.28,151.97,151.95,6.5794]
[1751843016142,55.22,151.98,151.97,6.5786]
[1751843016337,53.78,152.02,151.97,2.66939274]
[1751843016535,213.52,152.01,151.97,2.66939274]
[1751843016838,213.5,152.01,151.97,2.66939274]
[1751843017134,56.44939274,152.03,151.97,2.66939274]
[1751843017436,213.38,152.0,151.96,2.66939274]
[1751843017636,213.38,152.0,151.97,6.5783]
[1751843017637,219.9575,152.0,151.97,6.5783]
[1751843019735,6.5775,152.0,151.97,6.5783]
[1751843019937,213.2,152.0,151.98,6.578]
[1751843020137,213.2,152.0,151.96,2.66939274]